[Event "*** Titled Tuesday Blitz"]
[Site "Chess.com"]
[Date "2021.03.30"]
[Round "3"]
[White "Deepweb2020"]
[Black "andy_rekt"]
[Result "1-0"]
[WhiteElo "2523"]
[BlackElo "2304"]
[TimeControl "180+1"]
[EndTime "10:28:11 PDT"]
[Termination "Deepweb2020 won on time"]

1. d4 {[%clk 0:03:00.9]} 1... f5 {[%clk 0:02:58.9]} 2. Bg5 {[%clk 0:02:59.4]}
2... g6 {[%clk 0:02:58.3]} 3. e3 {[%clk 0:02:58.4]} 3... Bg7 {[%clk 0:02:58.5]}
4. h4 {[%clk 0:02:59]} 4... h6 {[%clk 0:02:57.6]} 5. Bf4 {[%clk 0:02:57.7]} 5...
Nf6 {[%clk 0:02:57.8]} 6. Nf3 {[%clk 0:02:56]} 6... d6 {[%clk 0:02:50.7]} 7. c3
{[%clk 0:02:52]} 7... Nc6 {[%clk 0:02:50.7]} 8. Bb5 {[%clk 0:02:50.8]} 8... Nh5
{[%clk 0:02:42.8]} 9. Bh2 {[%clk 0:02:24.9]} 9... Bd7 {[%clk 0:02:36.4]} 10. Bc4
{[%clk 0:02:08.6]} 10... e6 {[%clk 0:02:29]} 11. Nbd2 {[%clk 0:02:01.8]} 11...
O-O {[%clk 0:02:18.9]} 12. Qb3 {[%clk 0:01:58.6]} 12... Na5 {[%clk 0:02:10]} 13.
Bxe6+ {[%clk 0:01:57.3]} 13... Kh8 {[%clk 0:02:09.8]} 14. Qa3 {[%clk 0:01:52.8]}
14... Bxe6 {[%clk 0:01:59.2]} 15. Qxa5 {[%clk 0:01:52.6]} 15... b6 {[%clk
0:01:38.3]} 16. Qa3 {[%clk 0:01:47.3]} 16... c5 {[%clk 0:01:37]} 17. O-O-O
{[%clk 0:01:46.2]} 17... f4 {[%clk 0:01:20.2]} 18. Nb3 {[%clk 0:01:44.2]} 18...
fxe3 {[%clk 0:01:17.6]} 19. fxe3 {[%clk 0:01:31.1]} 19... c4 {[%clk 0:00:59.1]}
20. d5 {[%clk 0:01:21.3]} 20... Bg4 {[%clk 0:00:50]} 21. Nbd2 {[%clk 0:01:18.2]}
21... b5 {[%clk 0:00:43.2]} 22. Qxd6 {[%clk 0:01:08.8]} 22... Qxd6 {[%clk
0:00:40.2]} 23. Bxd6 {[%clk 0:01:08]} 23... Rfe8 {[%clk 0:00:40.1]} 24. e4
{[%clk 0:01:03.8]} 24... Rad8 {[%clk 0:00:37.9]} 25. Bc5 {[%clk 0:01:03.1]}
25... Nf4 {[%clk 0:00:34]} 26. Kb1 {[%clk 0:00:51.7]} 26... Nd3 {[%clk
0:00:25.5]} 27. Be3 {[%clk 0:00:47.8]} 27... Rf8 {[%clk 0:00:10.9]} 28. Rhf1
{[%clk 0:00:43.7]} 28... Rde8 {[%clk 0:00:09]} 29. Kc2 {[%clk 0:00:39]} 29...
Ne5 {[%clk 0:00:08.6]} 30. b3 {[%clk 0:00:35.4]} 30... cxb3+ {[%clk 0:00:03.8]}
31. axb3 {[%clk 0:00:32.5]} 31... Nxf3 {[%clk 0:00:04.2]} 32. gxf3 {[%clk
0:00:32.5]} 32... Bh3 {[%clk 0:00:04]} 33. Rg1 {[%clk 0:00:31.9]} 33... Rc8
{[%clk 0:00:03.4]} 34. Nb1 {[%clk 0:00:32.2]} 34... b4 {[%clk 0:00:02.2]} 35.
Rg3 {[%clk 0:00:28.5]} 1-0

[Event "*** Titled Tuesday Blitz"]
[Site "Chess.com"]
[Date "2021.03.30"]
[Round "3"]
[White "Mikhail_Golubev"]
[Black "petincash"]
[Result "1-0"]
[WhiteElo "2528"]
[BlackElo "2302"]
[TimeControl "180+1"]
[EndTime "10:28:13 PDT"]
[Termination "Mikhail_Golubev won by checkmate"]

1. e4 {[%clk 0:03:00.9]} 1... c5 {[%clk 0:02:59.7]} 2. Nf3 {[%clk 0:03:00.3]}
2... g6 {[%clk 0:03:00.2]} 3. Nc3 {[%clk 0:02:59.3]} 3... Bg7 {[%clk 0:02:59.8]}
4. d4 {[%clk 0:02:59.4]} 4... cxd4 {[%clk 0:03:00.7]} 5. Nxd4 {[%clk 0:02:58.8]}
5... Nc6 {[%clk 0:03:01.3]} 6. Be3 {[%clk 0:02:57.6]} 6... Nf6 {[%clk
0:03:01.4]} 7. Bc4 {[%clk 0:02:57.5]} 7... O-O {[%clk 0:03:01.7]} 8. Bb3 {[%clk
0:02:56.5]} 8... d6 {[%clk 0:03:02.1]} 9. f3 {[%clk 0:02:56.5]} 9... Bd7 {[%clk
0:03:02.5]} 10. h4 {[%clk 0:02:56.7]} 10... Nxd4 {[%clk 0:02:57.2]} 11. Bxd4
{[%clk 0:02:55.3]} 11... h5 {[%clk 0:02:56.7]} 12. Qd2 {[%clk 0:02:46.3]} 12...
b5 {[%clk 0:02:53.9]} 13. g4 {[%clk 0:02:46.3]} 13... a5 {[%clk 0:02:33.5]} 14.
Bxf6 {[%clk 0:02:11.2]} 14... Bxf6 {[%clk 0:01:48.4]} 15. gxh5 {[%clk
0:02:11.1]} 15... a4 {[%clk 0:01:38.3]} 16. Bd5 {[%clk 0:02:08.1]} 16... b4
{[%clk 0:01:37.9]} 17. hxg6 {[%clk 0:01:55.1]} 17... Kg7 {[%clk 0:01:11.9]} 18.
Ne2 {[%clk 0:01:15.4]} 18... e6 {[%clk 0:01:11.9]} 19. Bxa8 {[%clk 0:01:13.3]}
19... Bxh4+ {[%clk 0:00:33.5]} 20. Kf1 {[%clk 0:01:06.6]} 20... Bb5 {[%clk
0:00:19.9]} 21. Qf4 {[%clk 0:00:27.3]} 21... Bg5 {[%clk 0:00:13.6]} 22. Qh2
{[%clk 0:00:26.2]} 22... fxg6 {[%clk 0:00:12.2]} 23. Qh7+ {[%clk 0:00:21.2]}
23... Kf6 {[%clk 0:00:12.7]} 24. Rd1 {[%clk 0:00:15.6]} 24... Ke5 {[%clk
0:00:08.1]} 25. Qh2+ {[%clk 0:00:12.8]} 25... Bf4 {[%clk 0:00:08.6]} 26. Qh7
{[%clk 0:00:10.9]} 26... Qf6 {[%clk 0:00:04.6]} 27. Rh3 {[%clk 0:00:09]} 27...
Be3 {[%clk 0:00:03.8]} 28. Qc7 {[%clk 0:00:06.1]} 28... Rxa8 {[%clk 0:00:02.8]}
29. Qxd6# {[%clk 0:00:05.7]} 1-0

[Event "*** Titled Tuesday Blitz"]
[Site "Chess.com"]
[Date "2021.03.30"]
[Round "3"]
[White "Bathory44"]
[Black "PotapovaM"]
[Result "1-0"]
[WhiteElo "2671"]
[BlackElo "2491"]
[TimeControl "180+1"]
[EndTime "10:28:14 PDT"]
[Termination "Bathory44 won by resignation"]

1. e4 {[%clk 0:02:53.4]} 1... c5 {[%clk 0:02:59.7]} 2. c3 {[%clk 0:02:53.1]}
2... d5 {[%clk 0:02:58.9]} 3. exd5 {[%clk 0:02:53.3]} 3... Qxd5 {[%clk
0:02:59.8]} 4. d4 {[%clk 0:02:53.8]} 4... Nf6 {[%clk 0:03:00.1]} 5. Nf3 {[%clk
0:02:53.7]} 5... cxd4 {[%clk 0:03:00.3]} 6. cxd4 {[%clk 0:02:53.4]} 6... e6
{[%clk 0:03:00.7]} 7. Nc3 {[%clk 0:02:52.6]} 7... Qd6 {[%clk 0:03:01]} 8. Bd3
{[%clk 0:02:52.3]} 8... Nc6 {[%clk 0:03:01.1]} 9. O-O {[%clk 0:02:51.9]} 9...
Be7 {[%clk 0:03:01.8]} 10. Be3 {[%clk 0:02:51.6]} 10... O-O {[%clk 0:03:02.3]}
11. a3 {[%clk 0:02:51.6]} 11... a6 {[%clk 0:02:58.2]} 12. Qe2 {[%clk 0:02:48.2]}
12... b5 {[%clk 0:02:58.2]} 13. Rad1 {[%clk 0:02:45.9]} 13... Bb7 {[%clk
0:02:56]} 14. h3 {[%clk 0:02:46]} 14... Rac8 {[%clk 0:02:46.9]} 15. Rfe1 {[%clk
0:02:45.8]} 15... Na5 {[%clk 0:02:46.5]} 16. Ne5 {[%clk 0:02:41.5]} 16... Nc6
{[%clk 0:02:14]} 17. Nf3 {[%clk 0:02:23.9]} 17... Na5 {[%clk 0:02:13.3]} 18. Bg5
{[%clk 0:02:11.4]} 18... Nc4 {[%clk 0:01:57.5]} 19. Ne5 {[%clk 0:02:05]} 19...
g6 {[%clk 0:01:47.5]} 20. Bf4 {[%clk 0:01:43.1]} 20... Qxd4 {[%clk 0:01:24]} 21.
Bh6 {[%clk 0:01:27.8]} 21... Qxe5 {[%clk 0:01:20.3]} 22. Qxe5 {[%clk 0:01:11.4]}
22... Nxe5 {[%clk 0:01:21.2]} 23. Bxf8 {[%clk 0:01:11.6]} 23... Bxf8 {[%clk
0:01:02.8]} 24. Rxe5 {[%clk 0:01:10.5]} 24... Bg7 {[%clk 0:01:03.5]} 25. Re2
{[%clk 0:01:04.9]} 25... Nh5 {[%clk 0:00:59.8]} 26. Be4 {[%clk 0:00:57.4]} 26...
Bxe4 {[%clk 0:00:39.4]} 27. Nxe4 {[%clk 0:00:58.3]} 27... Nf4 {[%clk 0:00:38.7]}
28. Red2 {[%clk 0:00:58.2]} 28... Nd5 {[%clk 0:00:28.6]} 29. g3 {[%clk
0:00:58.3]} 29... h5 {[%clk 0:00:26.7]} 30. h4 {[%clk 0:00:57.7]} 30... Bh6
{[%clk 0:00:26.5]} 31. Re2 {[%clk 0:00:56.4]} 31... Bg7 {[%clk 0:00:27.1]} 32.
Kg2 {[%clk 0:00:56.4]} 32... Kf8 {[%clk 0:00:26.6]} 33. Rdd2 {[%clk 0:00:54.1]}
33... Rc1 {[%clk 0:00:26.2]} 34. Rc2 {[%clk 0:00:54.3]} 34... Rb1 {[%clk
0:00:24.4]} 35. Nd6 {[%clk 0:00:30.2]} 35... Ke7 {[%clk 0:00:23.1]} 36. Nb7
{[%clk 0:00:30.1]} 36... Bd4 {[%clk 0:00:22.6]} 37. Rcd2 {[%clk 0:00:27.8]}
37... e5 {[%clk 0:00:20.2]} 38. Rxd4 {[%clk 0:00:27.5]} 38... Ke6 {[%clk
0:00:19.9]} 39. Rdd2 {[%clk 0:00:25.9]} 39... f5 {[%clk 0:00:19.6]} 40. Nc5+
{[%clk 0:00:25.1]} 40... Kd6 {[%clk 0:00:19.8]} 41. Nd3 {[%clk 0:00:24.8]} 41...
e4 {[%clk 0:00:20.3]} 42. Nb4 {[%clk 0:00:24.7]} 1-0

[Event "*** Titled Tuesday Blitz"]
[Site "Chess.com"]
[Date "2021.03.30"]
[Round "3"]
[White "AlphaHero0"]
[Black "AttilaTurzo"]
[Result "0-1"]
[WhiteElo "2101"]
[BlackElo "2490"]
[TimeControl "180+1"]
[EndTime "10:28:14 PDT"]
[Termination "AttilaTurzo won on time"]

1. e4 {[%clk 0:03:00.9]} 1... c6 {[%clk 0:02:58.1]} 2. Nc3 {[%clk 0:02:59.9]}
2... d5 {[%clk 0:02:58.2]} 3. Nf3 {[%clk 0:03:00.8]} 3... Bg4 {[%clk 0:02:54.8]}
4. h3 {[%clk 0:03:01.2]} 4... Bxf3 {[%clk 0:02:55]} 5. Qxf3 {[%clk 0:03:02.1]}
5... e6 {[%clk 0:02:54.5]} 6. Be2 {[%clk 0:03:02.2]} 6... Nf6 {[%clk 0:02:54.1]}
7. O-O {[%clk 0:03:01.8]} 7... Be7 {[%clk 0:02:41.3]} 8. d3 {[%clk 0:03:00.1]}
8... O-O {[%clk 0:02:41]} 9. Qg3 {[%clk 0:02:57.5]} 9... Kh8 {[%clk 0:02:40.7]}
10. f4 {[%clk 0:02:38.9]} 10... b5 {[%clk 0:02:29.9]} 11. a3 {[%clk 0:02:18]}
11... Nbd7 {[%clk 0:02:17.9]} 12. e5 {[%clk 0:02:10.5]} 12... Ne8 {[%clk
0:02:14.2]} 13. d4 {[%clk 0:02:03.3]} 13... f5 {[%clk 0:02:04.8]} 14. Be3 {[%clk
0:01:54.7]} 14... a6 {[%clk 0:01:46.3]} 15. Qf3 {[%clk 0:01:53.2]} 15... c5
{[%clk 0:01:45.2]} 16. Rad1 {[%clk 0:01:50.3]} 16... c4 {[%clk 0:01:35.9]} 17.
Rb1 {[%clk 0:01:43.1]} 17... Nc7 {[%clk 0:01:35.2]} 18. g4 {[%clk 0:01:37.7]}
18... g6 {[%clk 0:01:30.2]} 19. gxf5 {[%clk 0:01:23.9]} 19... gxf5 {[%clk
0:01:29.5]} 20. Kh1 {[%clk 0:01:24.8]} 20... Qe8 {[%clk 0:01:26.6]} 21. Rg1
{[%clk 0:01:18.4]} 21... Qf7 {[%clk 0:01:21.1]} 22. Qh5 {[%clk 0:01:10.3]} 22...
Qxh5 {[%clk 0:01:19.6]} 23. Bxh5 {[%clk 0:01:11.2]} 23... Rg8 {[%clk 0:01:20.1]}
24. Ne2 {[%clk 0:00:46.1]} 24... Rxg1+ {[%clk 0:01:17.5]} 25. Nxg1 {[%clk
0:00:40.8]} 25... Rg8 {[%clk 0:01:18.4]} 26. Kh2 {[%clk 0:00:37.3]} 26... a5
{[%clk 0:01:12.1]} 27. Nf3 {[%clk 0:00:36.5]} 27... b4 {[%clk 0:01:05]} 28. axb4
{[%clk 0:00:36.3]} 28... axb4 {[%clk 0:01:05.9]} 29. h4 {[%clk 0:00:36.7]} 29...
h6 {[%clk 0:01:02.8]} 30. Ra1 {[%clk 0:00:35.5]} 30... Ra8 {[%clk 0:00:59.6]}
31. Rxa8+ {[%clk 0:00:33.5]} 31... Nxa8 {[%clk 0:01:00.5]} 32. Kh3 {[%clk
0:00:29]} 32... Nc7 {[%clk 0:00:55.3]} 33. Bc1 {[%clk 0:00:29.9]} 33... Kg7
{[%clk 0:00:54.5]} 34. Kg3 {[%clk 0:00:29.7]} 34... Nb6 {[%clk 0:00:53.6]} 35.
b3 {[%clk 0:00:23.9]} 35... Nb5 {[%clk 0:00:50.8]} 36. Kf2 {[%clk 0:00:16.9]}
36... Kf8 {[%clk 0:00:44.1]} 37. Ke2 {[%clk 0:00:15.7]} 37... Nc3+ {[%clk
0:00:43.5]} 38. Ke1 {[%clk 0:00:10]} 38... Nc8 {[%clk 0:00:35.8]} 39. Bd2 {[%clk
0:00:02.7]} 39... Ne4 {[%clk 0:00:33.9]} 40. Bc1 {[%clk 0:00:02.2]} 40... Na7
{[%clk 0:00:34]} 0-1

[Event "*** Titled Tuesday Blitz"]
[Site "Chess.com"]
[Date "2021.03.30"]
[Round "3"]
[White "Trickov"]
[Black "FeketeBarika"]
[Result "0-1"]
[WhiteElo "2408"]
[BlackElo "2268"]
[TimeControl "180+1"]
[EndTime "10:28:16 PDT"]
[Termination "FeketeBarika won by resignation"]

1. d4 {[%clk 0:02:38.3]} 1... Nf6 {[%clk 0:02:56.2]} 2. Nf3 {[%clk 0:02:34]}
2... e6 {[%clk 0:02:55.2]} 3. g3 {[%clk 0:02:33.3]} 3... c5 {[%clk 0:02:54.7]}
4. Bg2 {[%clk 0:02:33.4]} 4... cxd4 {[%clk 0:02:53.3]} 5. O-O {[%clk 0:02:33.2]}
5... Nc6 {[%clk 0:02:54.2]} 6. Nxd4 {[%clk 0:02:32.6]} 6... Qb6 {[%clk
0:02:51.9]} 7. Nb3 {[%clk 0:02:29.9]} 7... d5 {[%clk 0:02:49.8]} 8. Nc3 {[%clk
0:02:27.5]} 8... Be7 {[%clk 0:02:45.6]} 9. e4 {[%clk 0:02:24.2]} 9... dxe4
{[%clk 0:02:44.8]} 10. Nxe4 {[%clk 0:02:18.1]} 10... Nxe4 {[%clk 0:02:43.4]} 11.
Bxe4 {[%clk 0:02:17.8]} 11... O-O {[%clk 0:02:43.5]} 12. Be3 {[%clk 0:02:12.7]}
12... Qc7 {[%clk 0:02:42.6]} 13. Qh5 {[%clk 0:01:53.5]} 13... g6 {[%clk
0:02:26.4]} 14. Qe2 {[%clk 0:01:47.2]} 14... f5 {[%clk 0:02:18.7]} 15. Bg2
{[%clk 0:01:45.7]} 15... e5 {[%clk 0:02:17.6]} 16. Bh6 {[%clk 0:01:38.9]} 16...
Rd8 {[%clk 0:02:15.6]} 17. Rad1 {[%clk 0:01:37]} 17... Be6 {[%clk 0:02:14.3]}
18. c3 {[%clk 0:01:25.7]} 18... Bf7 {[%clk 0:02:08.2]} 19. h4 {[%clk 0:01:22.8]}
19... Bf8 {[%clk 0:02:03.9]} 20. Bxf8 {[%clk 0:01:19.5]} 20... Kxf8 {[%clk
0:02:04.8]} 21. Qb5 {[%clk 0:01:15.8]} 21... Kg7 {[%clk 0:01:55.8]} 22. Nc5
{[%clk 0:01:09.7]} 22... e4 {[%clk 0:01:49.4]} 23. Qxb7 {[%clk 0:00:52.3]} 23...
Qxb7 {[%clk 0:01:46.7]} 24. Nxb7 {[%clk 0:00:52.2]} 24... Rxd1 {[%clk
0:01:35.5]} 25. Rxd1 {[%clk 0:00:51.3]} 25... Bxa2 {[%clk 0:01:35.4]} 26. Rd7+
{[%clk 0:00:50.4]} 26... Kh6 {[%clk 0:01:32]} 27. Rc7 {[%clk 0:00:48.5]} 27...
Ne5 {[%clk 0:01:30.6]} 28. Nd6 {[%clk 0:00:46.3]} 28... a5 {[%clk 0:01:30.2]}
29. Bf1 {[%clk 0:00:39.7]} 29... a4 {[%clk 0:01:29.5]} 30. Rb7 {[%clk
0:00:38.4]} 30... Rd8 {[%clk 0:01:22.5]} 31. Rb6 {[%clk 0:00:37.4]} 31... Bb3
{[%clk 0:01:15]} 32. Nxf5+ {[%clk 0:00:36.4]} 32... Kh5 {[%clk 0:01:11.7]} 33.
Be2+ {[%clk 0:00:36.5]} 33... Nf3+ {[%clk 0:01:11.9]} 34. Bxf3+ {[%clk 0:00:33]}
34... exf3 {[%clk 0:01:12.8]} 35. Nd4 {[%clk 0:00:33.2]} 35... Bd5 {[%clk
0:01:02.9]} 36. Rb5 {[%clk 0:00:32.6]} 36... Kg4 {[%clk 0:01:01.1]} 37. Rb4
{[%clk 0:00:32.3]} 37... Kh3 {[%clk 0:00:57]} 38. Kf1 {[%clk 0:00:24.7]} 38...
a3 {[%clk 0:00:52.2]} 39. bxa3 {[%clk 0:00:24]} 39... Rc8 {[%clk 0:00:50.9]} 40.
Rb5 {[%clk 0:00:20.6]} 40... Bc4+ {[%clk 0:00:49.5]} 41. Ke1 {[%clk 0:00:20.1]}
41... Bxb5 {[%clk 0:00:48.9]} 42. Nxb5 {[%clk 0:00:20.4]} 42... Rc5 {[%clk
0:00:48.3]} 43. a4 {[%clk 0:00:20.4]} 43... Rc4 {[%clk 0:00:48.3]} 44. Nd4
{[%clk 0:00:20.4]} 44... Rxc3 {[%clk 0:00:46]} 45. a5 {[%clk 0:00:19.2]} 45...
Kg2 {[%clk 0:00:44.6]} 46. Kd2 {[%clk 0:00:13.9]} 46... Ra3 {[%clk 0:00:44]} 47.
Ke1 {[%clk 0:00:13.1]} 47... Ra1+ {[%clk 0:00:42.2]} 48. Kd2 {[%clk 0:00:13.2]}
48... Kxf2 {[%clk 0:00:42.9]} 0-1

[Event "*** Titled Tuesday Blitz"]
[Site "Chess.com"]
[Date "2021.03.30"]
[Round "3"]
[White "poneis_malditos"]
[Black "zurzan"]
[Result "1-0"]
[WhiteElo "2299"]
[BlackElo "1951"]
[TimeControl "180+1"]
[EndTime "10:28:16 PDT"]
[Termination "poneis_malditos won by resignation"]

1. e4 {[%clk 0:03:00.9]} 1... Nf6 {[%clk 0:02:59.2]} 2. d3 {[%clk 0:03:00.4]}
2... e5 {[%clk 0:02:57.5]} 3. f4 {[%clk 0:02:57.5]} 3... d6 {[%clk 0:02:55.4]}
4. Nf3 {[%clk 0:02:57.3]} 4... Nc6 {[%clk 0:02:54.9]} 5. g3 {[%clk 0:02:57.2]}
5... Bg4 {[%clk 0:02:54.2]} 6. Nbd2 {[%clk 0:02:56.2]} 6... h5 {[%clk
0:02:50.2]} 7. h3 {[%clk 0:02:52.5]} 7... Bxf3 {[%clk 0:02:49.5]} 8. Nxf3 {[%clk
0:02:53.4]} 8... Be7 {[%clk 0:02:43.2]} 9. Bg2 {[%clk 0:02:53.3]} 9... Qd7
{[%clk 0:02:41.9]} 10. O-O {[%clk 0:02:51.4]} 10... O-O-O {[%clk 0:02:40.9]} 11.
c4 {[%clk 0:02:48.8]} 11... Nd4 {[%clk 0:02:36.7]} 12. Be3 {[%clk 0:02:46.2]}
12... Nxf3+ {[%clk 0:02:34.6]} 13. Qxf3 {[%clk 0:02:47.1]} 13... a6 {[%clk
0:02:29.4]} 14. a4 {[%clk 0:02:44.7]} 14... h4 {[%clk 0:02:19]} 15. g4 {[%clk
0:02:44.1]} 15... Rdf8 {[%clk 0:02:01.4]} 16. b4 {[%clk 0:02:43.6]} 16... Nh7
{[%clk 0:01:54.6]} 17. a5 {[%clk 0:02:42.5]} 17... exf4 {[%clk 0:01:46.6]} 18.
Bxf4 {[%clk 0:02:37.8]} 18... Bg5 {[%clk 0:01:45.3]} 19. Rfb1 {[%clk 0:02:27.5]}
19... Bxf4 {[%clk 0:01:44]} 20. Qxf4 {[%clk 0:02:28.4]} 20... g6 {[%clk
0:01:28.7]} 21. b5 {[%clk 0:02:27.7]} 21... axb5 {[%clk 0:01:24.8]} 22. Rxb5
{[%clk 0:02:17.8]} 22... f5 {[%clk 0:01:18.1]} 23. exf5 {[%clk 0:02:12.3]} 23...
c6 {[%clk 0:01:17.9]} 24. Rb6 {[%clk 0:01:49.4]} 24... gxf5 {[%clk 0:01:17.3]}
25. a6 {[%clk 0:01:40.8]} 25... fxg4 {[%clk 0:00:54.1]} 26. a7 {[%clk 0:01:01]}
26... Kc7 {[%clk 0:00:52.8]} 27. Qd4 {[%clk 0:00:55.6]} 27... gxh3 {[%clk
0:00:44.2]} 28. Qb2 {[%clk 0:00:46.6]} 28... Qc8 {[%clk 0:00:29.9]} 29. a8=Q
{[%clk 0:00:42.3]} 29... Qxa8 {[%clk 0:00:29.3]} 30. Rxa8 {[%clk 0:00:42.6]}
30... Rb8 {[%clk 0:00:23.1]} 31. Rxb8 {[%clk 0:00:39.7]} 31... Rxb8 {[%clk
0:00:24]} 32. Bxc6 {[%clk 0:00:39.8]} 32... Nf6 {[%clk 0:00:19.8]} 33. Rxb7+
{[%clk 0:00:38.7]} 33... Rxb7 {[%clk 0:00:16.3]} 34. Qxb7+ {[%clk 0:00:39.6]}
34... Kd8 {[%clk 0:00:17.1]} 35. Qf7 {[%clk 0:00:35.9]} 35... h2+ {[%clk
0:00:12.5]} 36. Kxh2 {[%clk 0:00:33.8]} 36... d5 {[%clk 0:00:07]} 37. Qxf6+
{[%clk 0:00:32.8]} 37... Kc7 {[%clk 0:00:07.9]} 38. Bxd5 {[%clk 0:00:32.6]}
38... h3 {[%clk 0:00:07.4]} 39. Qc6+ {[%clk 0:00:32.3]} 39... Kd8 {[%clk
0:00:07.1]} 40. Qb7 {[%clk 0:00:32.3]} 40... Ke8 {[%clk 0:00:06.9]} 41. Be6
{[%clk 0:00:32.4]} 1-0

[Event "*** Titled Tuesday Blitz"]
[Site "Chess.com"]
[Date "2021.03.30"]
[Round "3"]
[White "Jospem"]
[Black "Slovak_fighter2000"]
[Result "1-0"]
[WhiteElo "2950"]
[BlackElo "2481"]
[TimeControl "180+1"]
[EndTime "10:28:17 PDT"]
[Termination "Jospem won by resignation"]

1. e4 {[%clk 0:03:00.9]} 1... e6 {[%clk 0:02:59.3]} 2. d4 {[%clk 0:03:01]} 2...
d5 {[%clk 0:02:59.6]} 3. Bd3 {[%clk 0:03:01.9]} 3... dxe4 {[%clk 0:02:58.8]} 4.
Bxe4 {[%clk 0:03:02.8]} 4... Nf6 {[%clk 0:02:58.8]} 5. Bf3 {[%clk 0:03:03.2]}
5... c5 {[%clk 0:02:58.9]} 6. Ne2 {[%clk 0:03:03.2]} 6... Nc6 {[%clk 0:02:58.9]}
7. Be3 {[%clk 0:03:03.2]} 7... e5 {[%clk 0:02:56.3]} 8. Bxc6+ {[%clk 0:02:56.5]}
8... bxc6 {[%clk 0:02:57.2]} 9. dxe5 {[%clk 0:02:55.5]} 9... Qxd1+ {[%clk
0:02:56.7]} 10. Kxd1 {[%clk 0:02:56.4]} 10... Ng4 {[%clk 0:02:44.8]} 11. Nd2
{[%clk 0:02:54.2]} 11... Nxe5 {[%clk 0:02:41.3]} 12. h3 {[%clk 0:02:36.9]} 12...
Be7 {[%clk 0:02:35]} 13. Ng3 {[%clk 0:02:27.9]} 13... O-O {[%clk 0:02:30.5]} 14.
Re1 {[%clk 0:02:28.4]} 14... Be6 {[%clk 0:02:26.3]} 15. Nge4 {[%clk 0:02:28.7]}
15... c4 {[%clk 0:02:07.6]} 16. Bd4 {[%clk 0:02:26.2]} 16... Nd7 {[%clk
0:02:02.6]} 17. Ke2 {[%clk 0:02:05.5]} 17... c5 {[%clk 0:01:55.5]} 18. Bc3
{[%clk 0:02:01]} 18... Nb6 {[%clk 0:01:54.3]} 19. Kf1 {[%clk 0:01:58.1]} 19...
Rab8 {[%clk 0:01:46.5]} 20. b3 {[%clk 0:01:55.7]} 20... Rfd8 {[%clk 0:01:43.2]}
21. Nf3 {[%clk 0:01:49.9]} 21... Nd5 {[%clk 0:01:34.7]} 22. Ba5 {[%clk
0:01:49.8]} 22... Nb6 {[%clk 0:01:30.5]} 23. Neg5 {[%clk 0:01:35.2]} 23... Bxg5
{[%clk 0:01:27.4]} 24. Nxg5 {[%clk 0:01:36.1]} 24... Bf5 {[%clk 0:01:27.6]} 25.
Ne4 {[%clk 0:01:34.4]} 25... Bxe4 {[%clk 0:01:23.8]} 26. Rxe4 {[%clk 0:01:35.3]}
26... cxb3 {[%clk 0:01:18.1]} 27. cxb3 {[%clk 0:01:32.8]} 27... Rd4 {[%clk
0:01:08.8]} 28. Rxd4 {[%clk 0:01:17.4]} 28... cxd4 {[%clk 0:01:09.7]} 29. Ke2
{[%clk 0:01:17.6]} 29... Nd5 {[%clk 0:00:44.6]} 30. Kd3 {[%clk 0:01:17.1]} 30...
Nf4+ {[%clk 0:00:44.3]} 31. Kxd4 {[%clk 0:01:17.4]} 31... Nxg2 {[%clk
0:00:41.9]} 32. Bc7 {[%clk 0:01:16.4]} 32... Rc8 {[%clk 0:00:38]} 33. Bg3 {[%clk
0:01:16.2]} 33... f5 {[%clk 0:00:30.5]} 34. Rg1 {[%clk 0:01:15.5]} 34... f4
{[%clk 0:00:29.6]} 35. Rxg2 {[%clk 0:01:15.5]} 35... fxg3 {[%clk 0:00:29.8]} 36.
fxg3 {[%clk 0:01:16.4]} 36... Kf7 {[%clk 0:00:28.2]} 37. b4 {[%clk 0:01:13.5]}
37... Ke6 {[%clk 0:00:25.8]} 38. a4 {[%clk 0:01:13.9]} 38... Rc1 {[%clk
0:00:24.3]} 39. Rb2 {[%clk 0:01:05.4]} 39... Kd6 {[%clk 0:00:22.9]} 40. Rf2
{[%clk 0:00:58.6]} 40... Rd1+ {[%clk 0:00:21.1]} 41. Kc4 {[%clk 0:00:58.4]}
41... Rg1 {[%clk 0:00:18.5]} 42. g4 {[%clk 0:00:57.4]} 42... Rc1+ {[%clk
0:00:16]} 43. Kb5 {[%clk 0:00:57.1]} 43... Rc7 {[%clk 0:00:15.8]} 44. Rd2+
{[%clk 0:00:56]} 44... Ke5 {[%clk 0:00:14.2]} 45. Ka6 {[%clk 0:00:56.5]} 45...
Kf4 {[%clk 0:00:11.5]} 46. b5 {[%clk 0:00:56.8]} 46... Rc3 {[%clk 0:00:06.9]}
47. Kxa7 {[%clk 0:00:55.7]} 47... Rxh3 {[%clk 0:00:07.2]} 48. b6 {[%clk
0:00:56.1]} 48... Ra3 {[%clk 0:00:07.1]} 49. Rd4+ {[%clk 0:00:55.3]} 1-0